Cogmind - Beta 14 @@@ ROGUE MODE // 2025.03.24 @ 15:14:21 Player: Jekonmo Result: Destroyed by YB-WMR(R) with Subdweller Laser Performance ------------- Evolutions (0) 0 Regions Visited (2) 400 Robots Destroyed (18) 90 Value Destroyed (434) 434 Prototype IDs (0) 0 Alien Tech Used (0) 0 Bonus (0) 0 TOTAL SCORE: 924 Bonus ------- None Cogmind --------- Core Integrity 0/250 Matter 258/300 Energy 100/100 System Corruption 1% Temperature Cool (6) Movement Core (400) Ox7 Location -10/Subcaves Parts ------- > --- POWER (1) -------- (None) > --- PROPULSION (2) --- (None) > --- UTILITY (2) ------ Large Storage Unit > --- WEAPON (2) ------- Light Cannon > --- INVENTORY (15) --- Light Ion Engine Compact Wheel Compact Wheel Subdweller Monowheel High-capacity Matter Pod (112) Medium Laser Light Assault Rifle Mini Grenade Launcher Mini Grenade Launcher Datajack Peak State ------------ > --- POWER ------------ Light Ion Engine > --- PROPULSION ------- Wheel Compact Wheel > --- UTILITY ---------- Large Storage Unit Light Armor Plating > --- WEAPON ----------- Light Assault Rifle Mini Grenade Launcher > --- INVENTORY -------- Light Ion Engine Wheel Compact Wheel High-capacity Matter Pod Medium Laser Light Cannon Light Cannon Mini Grenade Launcher Datajack [Rating: 9] Favorites ----------- Power Ion Engine Engine Ion Engine Propulsion Wheel Wheel Wheel Utility Light Armor Plating Storage Large Storage Unit Protection Light Armor Plating Weapon Light Cannon Energy Gun Medium Laser Ballistic Gun Light Assault Rifle Ballistic Cannon Light Cannon Launcher Mini Grenade Launcher Special Melee Weapon Datajack Build | -11 -10 -10 ------- Run | Yrd Mat Sub Slots Evolved . | . . . Power . | . . . Propulsion . | . . . Utility . | . . . Weapon . | . . . Parts Attached 19 | 6 10 3 Power 3 | 1 2 . Engine 3 | 1 2 . Core . | . . . Reactor . | . . . Propulsion 4 | 2 1 1 Treads . | . . . Leg . | . . . Wheel 4 | 2 1 1 Hover . | . . . Flight . | . . . Utility 4 | 1 3 . Device . | . . . Storage 2 | 1 1 . Processor . | . . . Hackware . | . . . Protection 2 | . 2 . Artifact . | . . . Weapon 8 | 2 4 2 Energy Gun 1 | 1 . . Energy Cannon . | . . . Ballistic Gun 1 | 1 . . Ballistic Cannon 4 | . 2 2 Launcher 1 | . 1 . Special Weapon . | . . . Impact Weapon . | . . . Slashing Weapon . | . . . Piercing Weapon . | . . . Special Melee Weapon 1 | . 1 . Unidentified Prototypes . | . . . Parts Lost 7 | . 2 5 Power 1 | . . 1 Propulsion 3 | . 1 2 Utility 2 | . 1 1 Weapon 1 | . . 1 Highest Loss Streak 5 | . 2 5 To Critical Strikes . | . . . Average Slot Usage (%) 94 | . 92 96 Engine 13 | . 14 13 Wheel 27 | . 27 26 Storage 14 | . 14 14 Protection 9 | . 7 13 Ballistic Gun 8 | . 14 . Ballistic Cannon 14 | . 7 26 Launcher 2 | . 3 . Special Melee Weapon 1 | . 2 . Peak Build Rating 9 | 6 9 9 Average Rating 7 | 4 6 7 On Entrance 5 | . 6 9 Naked Turns . | . . . Heaviest Build 32 | 13 29 32 Greatest Support 32 | 32 32 20 Greatest Overweight (x) 1 | . 1 1 Average Overweight (x) . | . . 1 Largest Inventory Capacity 15 | 8 15 15 Average Capacity 11 | 7 9 15 Most Carried 10 | 5 10 10 Average Carried 6 | . 5 9 Final Capacity 15 | 8 15 15 Final Carried 10 | . 9 10 Class Distribution -------------------- 100% | Mutant Dominant Class ---------------- Mutant | -10/Materials Mutant | -10/Subcaves Resources | -11 -10 -10 ----------- Run | Yrd Mat Sub Matter Collected 708 | 217 282 209 Remotely . | . . . Salvage Created 481 | . 413 68 Parts 37 | . 35 2 Haulers Intercepted . | . . . Recyclers Shooed . | . . . Parts Field Recycled . | . . . Retrieved Matter . | . . . Parts Self-Destructed 7 | . . 7 Prevented . | . . . Kills | -11 -10 -10 ------- Run | Yrd Mat Sub Combat Hostiles Destroyed 11 | . 9 2 Guns 2 | . 2 . Cannons 6 | . 4 2 AOE 3 | . 3 . Classes Destroyed 7 | . 6 1 Builder 2 | . 2 . Recycler 2 | . 2 . Operator 1 | . 1 . Watcher 2 | . 2 . Swarmer 3 | . 3 . Grunt 6 | . 6 . Subdweller 2 | . . 2 Best Kill Streak 4 | . 4 1 Combat Bots Only 3 | . 3 1 Max Kills in Single Turn 3 | . 3 1 Gunslinging . | . . . Exploded 3 | . 3 . Melee . | . . . Uniques/NPCs Destroyed . | . . . Combat | -11 -10 -10 -------- Run | Yrd Mat Sub Hostile Shots Fired 64 | . 37 27 Missed 16 | . 12 4 Damage Taken 974 | . 390 584 Core 259 | . 53 206 Absorbed by Shields . | . . . Core Remaining (%) 100 | 100 . . Volleys Fired 51 | . 32 19 Largest 2 | . 2 2 Hottest 70 | . 55 70 Shots Fired 90 | . 63 27 Gun 32 | . 32 . Cannon 56 | . 29 27 Launcher 2 | . 2 . Special . | . . . Kinetic 88 | . 61 27 Thermal . | . . . Explosive 2 | . 2 . Electromagnetic . | . . . Robot Hit Streak 6 | . 5 6 Robot Miss Streak 6 | . 5 6 Penetration Max . | . . . Secondary Targets . | . . . Shots Hit Robots 43 | . 28 15 Core Hits 23 | . 18 5 Critical Kills . | . . . Critical Parts Destroyed 1 | . 1 . Critical Strikes 3 | . 3 . Destroy 1 | . 1 . Blast 2 | . 2 . Melee Attacks 2 | . 2 . Impact . | . . . Slashing . | . . . Piercing . | . . . Sneak Attacks 2 | . 2 . Combat Hostiles . | . . . Follow-up Attacks . | . . . Damage Inflicted 1026 | . 774 252 Guns 111 | . 111 . Cannons 538 | . 286 252 Explosions 377 | . 377 . Melee . | . . . Ramming . | . . . Kinetic 649 | . 397 252 Thermal 32 | . 32 . Explosive 188 | . 188 . Electromagnetic 157 | . 157 . Impact . | . . . Slashing . | . . . Piercing . | . . . Highest Corruption 1 | . 1 1 Average Corruption 1 | . 1 1 Corruption Purged . | . . . Corruption Blocked . | . . . Effects 6 | . 2 4 Matter Fused 1 | . . 1 Energy Discharges 1 | . . 1 Data Loss (minor) 2 | . 1 1 Data Loss (major) 1 | . 1 . Misfires 1 | . . 1 Overload Shots . | . . . Overflow Damage 14 | . 14 . Projectiles . | . . . Explosions 14 | . 14 . Melee . | . . . Knockbacks 10 | . 6 4 Impact . | . . . Kinetic 8 | . 4 4 Secondary 2 | . 2 . Self-Inflicted Damage 126 | . 126 . Shots 3 | . 3 . Rammed . | . . . Targets Rammed . | . . . Kicked . | . . . Crushed . | . . . Highest Temperature 77 | . 77 . Average Temperature 29 | . 29 . Received Heat Transfer 294 | . 138 156 Siege Activations . | . . . Robots Corrupted . | . . . Combat Hostiles . | . . . Parts Fried . | . . . Impact Corruptions . | . . . Robots Melted . | . . . Combat Hostiles . | . . . Parts Melted . | . . . Heat Transferred 50 | . 50 . Parts Sabotaged . | . . . Parts Stolen . | . . . Parts Stripped . | . . . Power Chain Reactions 1 | . 1 . Alert | -11 -10 -10 ------- Run | Yrd Mat Sub Peak Influence 251 | . 251 . Initial . | . . . Average 115 | . 123 . Maximum Alert Level 1 | . 1 . Low Security (%) 73 | 100 72 . Level 1 26 | . 27 . Level 2 . | . . . Level 3 . | . . . Level 4 . | . . . Level 5 . | . . . High Security . | . . . Max Security . | . . . Squads Dispatched 2 | . 2 . Investigation 1 | . 1 . Extermination . | . . . Reinforcement 1 | . 1 . Assault . | . . . Garrison . | . . . Intercept . | . . . Searches Triggered . | . . . Construction Impeded . | . . . Haulers Reinforced . | . . . Active Scanning Responses . | . . . Cargo Convoy Interrupts . | . . . Stealth | -11 -10 -10 --------- Run | Yrd Mat Sub Distress Signals 1 | . 1 . Communications Jammed . | . . . Distress Signals . | . . . Times Spotted 19 | . 14 5 Peak Tracking Total 5 | . 4 5 Tactical Retreats 1 | . . 1 Traps | -11 -10 -10 ------- Run | Yrd Mat Sub Traps Triggered 3 | . 2 1 Indirectly . | . . . Trap Hack Attempts 18 | . 18 . Triggered . | . . . Disarmed . | . . . Reprogrammed 1 | . 1 . Reused . | . . . Traps Extracted . | . . . Installed . | . . . Triggered . | . . . Machines | -11 -10 -10 ---------- Run | Yrd Mat Sub Machines Disabled 5 | . 5 . Max in Single Turn 2 | . 2 . Machines Repaired . | . . . Machines Dismantled . | . . . Machines Sabotaged . | . . . Overloaded Fab Kills . | . . . Hacking | -11 -10 -10 --------- Run | Yrd Mat Sub Machines Accessed 2 | . 1 1 Terminals 1 | . 1 . Fabricators . | . . . Repair Stations . | . . . Recycling Units . | . . . Scanalyzers . | . . . Garrison Access . | . . . Total Hacks 4 | . 1 3 Successful 3 | . . 3 Failed 1 | . 1 . Catastrophic . | . . . Database Lockouts . | . . . Manual 2 | . 2 . Terminals 1 | . 1 . Fabricators . | . . . Repair Stations . | . . . Recycling Units . | . . . Scanalyzers . | . . . Garrison Access . | . . . Terminal Hacks 3 | . . 3 Record 3 | . . 3 Fabricator Hacks . | . . . Repair Station Hacks . | . . . Recycling Unit Hacks . | . . . Scanalyzer . | . . . Garrison Access Hacks . | . . . Unauthorized Hacks . | . . . Terminals . | . . . Fabricators . | . . . Repair Stations . | . . . Recycling Units . | . . . Scanalyzers . | . . . Garrison Access . | . . . Data Cores Recovered . | . . . Used . | . . . Hacking Detections 1 | . 1 . Full Trace Events . | . . . Feedback Events . | . . . Feedback Blocked . | . . . Robot Schematics Acquired . | . . . Robots Built . | . . . Authchips . | . . . Time . | . . . Total Robot Build Rating . | . . . Part Schematics Acquired . | . . . Parts Built . | . . . Authchips . | . . . Time . | . . . Total Part Build Rating . | . . . Parts Repaired . | . . . Time . | . . . Parts Recycled . | . . . Recycled Matter . | . . . Retrieved Matter . | . . . Retrieved Components . | . . . Parts Scanalyzed . | . . . Part Schematics Acquired . | . . . Parts Damaged . | . . . Bothacking | -11 -10 -10 ------------ Run | Yrd Mat Sub Used RIF Installer . | . . . Robots Hacked 1 | . 1 . Non-combat 1 | . 1 . Combat . | . . . Robot Hacks Applied 1 | . 1 . no_distress 1 | . 1 . Relay Couplers Released . | . . . Fabnet Peak Effective % . | . . . Robots Rewired . | . . . Allies Hacked . | . . . Hacks Repelled . | . . . Allies | -11 -10 -10 -------- Run | Yrd Mat Sub Total Allies . | . . . Largest Group . | . . . Highest-Rated Group . | . . . Highest-Rated Ally . | . . . Total Orders . | . . . Ally Attacks . | . . . Total Damage . | . . . Kills . | . . . Allies Corrupted . | . . . Allies Melted . | . . . Intel | -11 -10 -10 ------- Run | Yrd Mat Sub Robot Analysis Total . | . . . Derelict Logs Recovered . | . . . Drone Launches . | . . . Drone Recoveries . | . . . Exploration | -11 -10 -10 ------------- Run | Yrd Mat Sub Turns Passed 1180 | 45 725 410 Spaces Moved 890 | 40 473 377 Core 11 | 11 . . Treads . | . . . Legs . | . . . Wheels 879 | 29 473 377 Hover . | . . . Flight . | . . . Fastest Speed 50 | 50 90 95 Average Speed 95 | 86 97 95 Slowest Speed 105 | 100 105 95 Overloaded Moves . | . . . Propulsion Burnouts . | . . . Robots Hopped . | . . . Cave-ins Triggered . | . . . Exploration Rate (%) 32 | 4 61 33 Regions Visited 2 Branch Regions 1 Pre-discovered Areas . | . . . Known Exits Taken . | . . . Unknown Exits Taken 2 | 1 1 . Scrap Searched . | . . . Spaces Dug . | . . . Terrain Destroyed 26 | . 26 . Melee . | . . . Projectile . | . . . AOE 26 | . 26 . Terrain Rammed . | . . . Walls Destroyed . | . . . Machines Disabled . | . . . Actions | -11 -10 -10 --------- Run | Yrd Mat Sub Total 1128 | 50 678 400 Wait 126 | . 126 . Move 888 | 39 472 377 Hop . | . . . Pick Up 21 | 5 15 1 Fast Attach 1 | 1 . . Attach 8 | 5 3 . Detach . | . . . Swap 10 | . 7 3 Drop 3 | . 3 . Fire 51 | . 32 19 Melee 2 | . 2 . Ram . | . . . Kick . | . . . Crush . | . . . Escape Stasis . | . . . Rewire . | . . . Trap 18 | . 18 . Miscellaneous . | . . . Route ------- -11/Scrapyard -10/Materials (discovered 3 exits: [*Mat] / [*Min] / *Sub) -10/Subcaves History --------- Turn | Location | Event 10 | -11/Scrapyard | Discovered new exit (range 16) 46 | -11/Scrapyard | Entered Materials 266 | -10/Materials | Discovered new exit (range 12) 302 | -10/Materials | Build established: Mutant 552 | -10/Materials | Discovered new exit (range 12) 620 | -10/Materials | Discovered new exit (range 5) 771 | -10/Materials | Entered Subcaves 1063 | -10/Subcaves | Visited Clippyterm 1066 | -10/Subcaves | Learned Factory emergency access door positions 1157 | -10/Subcaves | Shifting Twisted Machinery released Battle Rifle 1157 | -10/Subcaves | Core integrity fell below 50% 1172 | -10/Subcaves | Core integrity fell below 20% 1181 | -10/Subcaves | Destroyed by YB-WMR(R) with Subdweller Laser Last Messages --------------- would you like help? Data stored: Factory emergency access points. >>Record! "LRC-V1" It looks like you're REDACTED, I can suggest REDACTED and REDACTED. Also definitely avoid REDACTED. 01076_ System corrupted: FCS attempts to trigger Lgt. Cannon. 01076_ System corrupted: Lgt. Cannon misfires. 01107_ System corrupted: Energy discharge (-27). 01124_ System corrupted: Component data lost. Battle Rifle falls loose from the Twisted Machinery. 01158_ Lgt. Cannon destroyed. 01163_ Wheel destroyed. 01172_ YB-WMR(R) knocked back. 01172_ Lgt. Ion Engine destroyed. 01174_ JV-U8V(R) destroyed. 01175_ Lgt. Armor Plating destroyed. 01178_ YB-WMR(R) knocked back. Map ----- +----------------------------------------------------+ | ?????????????????????????????????????????????????? | | ?????????????????????????????????????????????????? | | ?????????????????????????????????????????????????? | | ?????????????????????????????????????????????????? | | ?????????????????????????????????????????????????? | | ?????????????????????????????????????????????????? | | ?????????????????????????????????????????????????? | | ?????????????????????????????????????????????????? | | ?????????????????????????????????????????????????? | | ??????????????????? #??????????????????????????? | | ??????????????????? #??????????????????????????? | | ??????????????????? #??????????????????????????? | | ????????????????### #??????????????????????????? | | #??????????????? #??????????????????????????? | | ######?????????? #??????????????????????????? | | #?????????? ###????????????????????????? | | ##??????????# """???????????????????????? | | ####??????????## """???????????????????????? | | ## ####???????## #????????????????????????? | | ## ##?????## "#????????????????????????? | | ## #??#### "#?????????????????????????? | | # #### " #?????????????????????????? | | ?# """"##??????"#????????????????? | | ## "##???""#?????????????????? | | # ## ##% "#??????????????????? | | ### ### @%%R#???????????????????? | | ##?##### ## &%"##???????????????????? | | ## #?????# #### "%#????????????????????? | | # ###???#### """""#?##""#????????????????????? | | ## ##?????##" " #?? "#????????????????????? | | # ##?????## ###??"" "???????????????????? | | ### ###????# ##????""""???????????????????? | | ?# # # ##???####?????# ???????????????????? | | ?####### ##????????????#?????????????????????? | | ?????### #??????????????????????????????????? | | ?????# ####???????????????????????????????? | | ?????## ##?????###???????????????? ?????? | | ??????#### #????## #???????????????# ?#??? | | ?????????# ##?#### #???????????????## # ?? | | ?????##### ##?## ##?????????????? ? | | ???### ##### ####??????????? | | #?## ### #?????????? | | #?# #??????????? | | ### ## #???????????? | | ## ### ### ##??????????????????? | | ### #?# ##?## #???????????????????? | | ### #?###???# ## ##???????????????????? | | ## ##???????# #### #????????????????????? | | #??? #???# #??# #????????????????????? | | ## ##?## ##?? ##????????????????? | +----------------------------------------------------+ Best States ------------- Heat Dissipation 25 Energy Generation 10 Energy Capacity 250 Matter Stores 300 Matter Capacity 300 Sight Range 16 Terrain Scan Density 10 Armor Coverage 150 Evasion (%) 42 Item Schematics ----------------- None Robot Schematics ------------------ None Fabricated ------------ Nothing Alien Tech Used ----------------- None Achievements -------------- Hehehe Challenges ------------ None Game ------ Seed HeavyArmageddonTreads Manual? 0 Play Time 00:11:17 Cumulative 7.5 hours Start 2025.03.24 @ 10:26:30 End 2025.03.24 @ 15:14:21 Sessions 3 Manual Loads 0 Difficulty Rogue Special Mode None Game No. 15 Rogue 15 Adventurer 0 Explorer 0 Win Type - Total 0 Types 0/0/0/0/0/0/0/0/0 Lore% 11 Gallery% 10 Achievement% 12 Wizard Run 0 Options --------- Layout 1 ASCII 0 Keyboard 0 Movement Mouse Keybinds 0 Fullscreen 1 Font 24/Smallcaps Map View 50x35 Zoom Use 0% Tactical HUD 1 Map Filters NONE Filters NONE Steam 0 RUN: 570058c6-d985-4ee5-a47d-b5e5663267ef